Cogmind - Beta 12 @@@ ROGUE MODE // 2024.01.15 @ 00:00:32 Player: puppuppit Result: Destroyed by YI-UF0 with YI-UF0's Doublenader Performance ------------- Evolutions (0) 0 Regions Visited (2) 400 Robots Destroyed (22) 110 Value Destroyed (289) 289 Prototype IDs (5) 100 Alien Tech Used (0) 0 Bonus (0) 0 TOTAL SCORE: 899 Bonus ------- None Cogmind --------- Core Integrity 0/250 Matter 80/300 Energy 73/100 System Corruption 0% Temperature Cool (0) Movement Flying (37) Location -10/Mines Parts ------- > --- POWER (1) -------- (None) > --- PROPULSION (2) --- Flight Unit Flight Unit > --- UTILITY (2) ------ Small Storage Unit Signal Interpreter > --- WEAPON (2) ------- (None) > --- INVENTORY (8) ---- Light Ion Engine Light Ion Engine Flight Unit Improved Terrain Scanner Light Assault Rifle Grenade Launcher Peak State ------------ > --- POWER ------------ Ion Engine > --- PROPULSION ------- Wheel Wheel > --- UTILITY ---------- Small Storage Unit Improved Terrain Scanner > --- WEAPON ----------- Small Laser Light Assault Rifle > --- INVENTORY -------- Light Ion Engine Light Ion Engine Light Ion Engine Wheel Compact Wheel Compact Wheel Improved Terrain Scanner Light Assault Rifle [Rating: 10] Favorites ----------- Power Light Ion Engine Engine Light Ion Engine Propulsion Wheel Wheel Wheel Flight Unit Flight Unit Utility Small Storage Unit Device Improved Terrain Scanner Storage Small Storage Unit Processor Signal Interpreter Weapon Light Assault Rifle Energy Gun Small Laser Ballistic Gun Light Assault Rifle Launcher Grenade Launcher Build | -11 -10 -10 ------- Run | Jun Mat Min Slots Evolved . | . . . Power . | . . . Propulsion . | . . . Utility . | . . . Weapon . | . . . Parts Attached 24 | 10 7 7 Power 5 | 3 1 1 Engine 5 | 3 1 1 Core . | . . . Reactor . | . . . Propulsion 10 | 3 3 4 Treads . | . . . Leg . | . . . Wheel 4 | 3 1 . Hover . | . . . Flight 6 | . 2 4 Utility 3 | 2 . 1 Device 1 | 1 . . Storage 1 | 1 . . Processor 1 | . . 1 Hackware . | . . . Protection . | . . . Artifact . | . . . Weapon 6 | 2 3 1 Energy Gun 1 | 1 . . Energy Cannon . | . . . Ballistic Gun 3 | 1 2 . Ballistic Cannon . | . . . Launcher 2 | . 1 1 Special Weapon . | . . . Impact Weapon . | . . . Slashing Weapon . | . . . Piercing Weapon . | . . . Special Melee Weapon . | . . . Unidentified Prototypes . | . . . Parts Lost 4 | . . 4 Power . | . . . Propulsion 2 | . . 2 Utility . | . . . Weapon 2 | . . 2 Highest Loss Streak 4 | . . 4 To Critical Strikes . | . . . Average Slot Usage (%) 92 | . 98 80 Engine 8 | . 12 . Wheel 18 | . 26 . Flight 9 | . 1 28 Device 12 | . 14 8 Storage 14 | . 14 14 Processor 1 | . . 5 Ballistic Gun 16 | . 14 21 Launcher 9 | . 12 2 Naked Turns . | . . . Heaviest Build 13 | 13 13 8 Greatest Support 26 | 26 20 8 Greatest Overweight (x) . | . . . Average Overweight (x) . | . . . Largest Inventory Capacity 8 | 8 8 8 Average Capacity 7 | 7 8 8 Most Carried 8 | 8 8 8 Average Carried 6 | 2 7 7 Final Capacity 8 | 8 8 8 Final Carried 8 | 8 6 6 Class Distribution -------------------- 93% | Mutant 6% | Scavenger-Mutant Dominant Class ---------------- Mutant | -10/Materials Mutant | -10/Mines Resources | -11 -10 -10 ----------- Run | Jun Mat Min Matter Collected 461 | 261 71 129 Remotely . | . . . Salvage Created 505 | 227 126 152 Parts 34 | 10 14 10 Haulers Intercepted . | . . . Recyclers Shooed 1 | 1 . . Parts Field Recycled . | . . . Retrieved Matter . | . . . Parts Self-Destructed . | . . . Prevented . | . . . Kills | -11 -10 -10 ------- Run | Jun Mat Min Combat Hostiles Destroyed 21 | . 9 12 Guns 5 | . 2 3 AOE 16 | . 7 9 Classes Destroyed 8 | 3 4 1 Worker 2 | 2 . . Tunneler 4 | 4 . . Recycler 2 | 1 . 1 Operator 1 | . 1 . Watcher 1 | . 1 . Swarmer 9 | . 6 3 Grunt 3 | . 3 . Assembled 9 | . . 9 Best Kill Streak 9 | 7 3 9 Combat Bots Only 9 | . 3 9 Max Kills in Single Turn 3 | 1 2 3 Gunslinging . | . . . Exploded 3 | . 2 3 Melee . | . . . Uniques/NPCs Destroyed . | . . . Combat | -11 -10 -10 -------- Run | Jun Mat Min Damage Taken 659 | . 191 468 Core 262 | . 42 220 Absorbed by Shields . | . . . Core Remaining (%) 100 | 100 . . Volleys Fired 66 | 23 25 18 Largest 2 | 2 2 2 Hottest 60 | 60 60 40 Shots Fired 113 | 44 39 30 Gun 94 | 44 26 24 Cannon . | . . . Launcher 19 | . 13 6 Special . | . . . Kinetic 71 | 23 24 24 Thermal 23 | 21 2 . Explosive 19 | . 13 6 Electromagnetic . | . . . Robot Hit Streak 14 | 14 7 5 Robot Miss Streak 3 | 3 3 2 Penetration Max . | . . . Secondary Targets . | . . . Shots Hit Robots 65 | 28 21 16 Core Hits 47 | 9 13 25 Critical Kills . | . . . Critical Parts Destroyed . | . . . Critical Strikes . | . . . Melee Attacks . | . . . Impact . | . . . Slashing . | . . . Piercing . | . . . Sneak Attacks . | . . . Combat Hostiles . | . . . Follow-up Attacks . | . . . Damage Inflicted 1561 | 283 762 516 Guns 488 | 283 104 101 Cannons . | . . . Explosions 1073 | . 658 415 Melee . | . . . Ramming . | . . . Kinetic 278 | 83 94 101 Thermal 210 | 200 10 . Explosive 1073 | . 658 415 Electromagnetic . | . . . Impact . | . . . Slashing . | . . . Piercing . | . . . Highest Corruption . | . . . Average Corruption . | . . . Corruption Purged . | . . . Corruption Blocked . | . . . Overload Shots . | . . . Overflow Damage 17 | . 17 . Projectiles . | . . . Explosions 17 | . 17 . Melee . | . . . Knockbacks . | . . . Impact . | . . . Kinetic . | . . . Secondary . | . . . Self-Inflicted Damage 60 | . . 60 Shots 3 | . . 3 Rammed . | . . . Targets Rammed . | . . . Kicked . | . . . Crushed . | . . . Highest Temperature 80 | 80 32 1 Average Temperature 24 | 32 12 1 Received Heat Transfer 39 | . 39 . Siege Activations . | . . . Robots Corrupted . | . . . Combat Hostiles . | . . . Parts Fried . | . . . Impact Corruptions . | . . . Robots Melted . | . . . Combat Hostiles . | . . . Parts Melted . | . . . Heat Transferred 475 | 450 25 . Parts Sabotaged . | . . . Parts Stolen . | . . . Parts Stripped . | . . . Power Chain Reactions . | . . . Missiles Intercepted . | . . . Alert | -11 -10 -10 ------- Run | Jun Mat Min Peak Influence 353 | 35 353 227 Initial 137 | . 22 137 Average 142 | 10 179 198 Maximum Alert Level 1 | . 1 1 Low Security (%) 66 | 100 69 21 Level 1 33 | . 30 78 Level 2 . | . . . Level 3 . | . . . Level 4 . | . . . Level 5 . | . . . High Security . | . . . Max Security . | . . . Squads Dispatched 3 | . 3 . Investigation 2 | . 2 . Extermination . | . . . Reinforcement 1 | . 1 . Assault . | . . . Garrison . | . . . Intercept . | . . . Searches Triggered . | . . . Construction Impeded . | . . . Haulers Reinforced . | . . . Active Scanning Responses . | . . . Cargo Convoy Interrupts . | . . . Stealth | -11 -10 -10 --------- Run | Jun Mat Min Distress Signals . | . . . Communications Jammed . | . . . Distress Signals . | . . . Times Spotted 29 | . 13 16 Peak Tracking Total 11 | . 4 11 Tactical Retreats . | . . . Traps | -11 -10 -10 ------- Run | Jun Mat Min Traps Triggered . | . . . Indirectly . | . . . Trap Hack Attempts . | . . . Triggered . | . . . Disarmed . | . . . Reprogrammed . | . . . Reused . | . . . Traps Extracted . | . . . Installed . | . . . Triggered . | . . . Machines | -11 -10 -10 ---------- Run | Jun Mat Min Machines Disabled 1 | . 1 . Max in Single Turn 1 | . 1 . Machines Repaired . | . . . Machines Sabotaged . | . . . Overloaded Fab Kills . | . . . Hacking | -11 -10 -10 --------- Run | Jun Mat Min Machines Accessed 6 | . 6 . Terminals 6 | . 6 . Fabricators . | . . . Repair Stations . | . . . Recycling Units . | . . . Scanalyzers . | . . . Garrison Access . | . . . Total Hacks 25 | . 25 . Successful 10 | . 10 . Failed 15 | . 15 . Catastrophic 4 | . 4 . Database Lockouts . | . . . Manual 4 | . 4 . Terminals 25 | . 25 . Fabricators . | . . . Repair Stations . | . . . Recycling Units . | . . . Scanalyzers . | . . . Garrison Access . | . . . Terminal Hacks 10 | . 10 . Prototype ID Bank 4 | . 4 . Alert Level 1 | . 1 . Dispatch Records 1 | . 1 . Transport Status 1 | . 1 . Recall Investigation 1 | . 1 . Zone Layout 2 | . 2 . Fabricator Hacks . | . . . Repair Station Hacks . | . . . Recycling Unit Hacks . | . . . Scanalyzer . | . . . Garrison Access Hacks . | . . . Unauthorized Hacks . | . . . Terminals . | . . . Fabricators . | . . . Repair Stations . | . . . Recycling Units . | . . . Scanalyzers . | . . . Garrison Access . | . . . Data Cores Recovered . | . . . Used . | . . . Hacking Detections 6 | . 6 . Full Trace Events 4 | . 4 . Feedback Events . | . . . Feedback Blocked . | . . . Robot Schematics Acquired . | . . . Robots Built . | . . . Authchips . | . . . Time . | . . . Total Robot Build Rating . | . . . Part Schematics Acquired . | . . . Parts Built . | . . . Authchips . | . . . Time . | . . . Total Part Build Rating . | . . . Parts Repaired . | . . . Time . | . . . Parts Recycled . | . . . Recycled Matter . | . . . Retrieved Matter . | . . . Retrieved Components . | . . . Parts Scanalyzed . | . . . Part Schematics Acquired . | . . . Parts Damaged . | . . . Bothacking | -11 -10 -10 ------------ Run | Jun Mat Min Used RIF Installer . | . . . Robots Hacked . | . . . Non-combat . | . . . Combat . | . . . Robot Hacks Applied . | . . . Relay Couplers Released . | . . . Fabnet Peak Effective % . | . . . Robots Rewired . | . . . Allies Hacked . | . . . Hacks Repelled . | . . . Allies | -11 -10 -10 -------- Run | Jun Mat Min Total Allies . | . . . Largest Group . | . . . Highest-Rated Group . | . . . Highest-Rated Ally . | . . . Total Orders . | . . . Ally Attacks . | . . . Total Damage . | . . . Kills . | . . . Allies Corrupted . | . . . Allies Melted . | . . . Intel | -11 -10 -10 ------- Run | Jun Mat Min Robot Analysis Total . | . . . Derelict Logs Recovered 1 | . . 1 Drone Launches . | . . . Drone Recoveries . | . . . Exploration | -11 -10 -10 ------------- Run | Jun Mat Min Turns Passed 510 | 125 273 112 Spaces Moved 450 | 46 265 139 Core 1 | 1 . . Treads . | . . . Legs . | . . . Wheels 269 | 45 224 . Hover . | . . . Flight 180 | . 41 139 Fastest Speed 37 | 50 37 37 Average Speed 63 | 84 73 37 Slowest Speed 90 | 90 80 37 Overloaded Moves . | . . . Propulsion Burnouts . | . . . Robots Hopped . | . . . Cave-ins Triggered . | . . . Exploration Rate (%) 36 | 5 66 37 Regions Visited 2 Branch Regions 1 Pre-discovered Areas 1 | . . 1 Known Exits Taken . | . . . Unknown Exits Taken 2 | 1 1 . Scrap Searched 1 | . . 1 Spaces Dug . | . . . Terrain Destroyed 71 | . 48 23 Melee . | . . . Projectile . | . . . AOE 71 | . 48 23 Terrain Rammed . | . . . Walls Destroyed . | . . . Machines Disabled . | . . . Actions | -11 -10 -10 --------- Run | Jun Mat Min Total 574 | 88 312 174 Wait 5 | . . 5 Move 448 | 45 264 139 Hop . | . . . Pick Up 14 | 8 5 1 Fast Attach 9 | 7 1 1 Attach 4 | . 1 3 Detach 2 | . . 2 Swap 11 | 3 5 3 Drop 15 | 2 11 2 Fire 66 | 23 25 18 Melee . | . . . Ram . | . . . Kick . | . . . Crush . | . . . Escape Stasis . | . . . Rewire . | . . . Trap . | . . . Miscellaneous . | . . . Route ------- -11/Junkyard -10/Materials (discovered 3 exits: [*Mat] / [*Min x2]) -10/Mines (discovered 1 exit: [*Mat]) History --------- Turn | Location | Event 11 | -11/Junkyard | Discovered new exit (range 15) 126 | -11/Junkyard | Entered Materials 150 | -10/Materials | Discovered new exit (range 13) 187 | -10/Materials | Discovered new exit (range 16) 285 | -10/Materials | Discovered new exit (range 12) 301 | -10/Materials | Build established: Mutant 399 | -10/Materials | Entered Mines 400 | -10/Mines | Discovered new exit (range 13) 470 | -10/Mines | Assembled infested the area 474 | -10/Mines | YI-UF0 nonchalantly dropped a Grenade Launcher on the ground 492 | -10/Mines | Core integrity fell below 50% 508 | -10/Mines | Core integrity fell below 20% 511 | -10/Mines | Destroyed by YI-UF0 with YI-UF0's Doublenader Last Messages --------------- 00479_ YI-UF0 mumbles something. 00481_ YI-UF0: "Whaaaaaaaa!" 00481_ Flight Unit destroyed. 00485_ YI-UF0 mumbles something. 00485_ Lgt. Assault Rifle destroyed. 00487_ as-77369 destroyed. 00487_ as-98956 destroyed. 00487_ as-52242 destroyed. 00489_ as-18404 destroyed. 00489_ as-92079 destroyed. 00491_ as-77341 destroyed. 00493_ as-76611 destroyed. 00493_ as-12342 destroyed. 00494_ YI-UF0 mumbles something. 00501_ as-86344 destroyed. 00503_ The unstable cave ceiling collapses. 00507_ Grenade Launcher destroyed. 00510_ Flight Unit destroyed. 00511_ The unstable cave ceiling collapses. Map ----- +----------------------------------------------------+ | ??#?# #??????????# #????? | | ????############ ####??????????# #????? | | ?????# ### #????????#????# #????? | | ????# #?????#???????# ##???? | | ????# #### #####??########### #???? | | ???????????# #?????## # # ### | | ???????????# ##????# | | ????#??????# #######=! % ## | | ???????????#=%!% !![ = % #????? | | ???????????##########[ ##????? | | ??????????????????#?# ! #???????? | | ????????????????????# #????????? | | ???????????????????### #?????????? | | ??????????????##### a %##?????????? | | ?????????????## #??????????? | | ?????????????# g #??????????? | | ?????????????# ##?????????? | | ?????????????# #?????????? | | ????????????## ##??????????? | | ????????????# ###??????????? | | ????????????# #??????????? | | ???????????## ##?????????? | | ???????????# #?????????? | | ?????????#?# #????????? | | ???????????# # # #????????? | | ???????????### @ ### ##????????? | | ?????????????## ##???#####?????????? | | ??????????????# ##??????????????????? | | ??????????????######???????????????????? | | ???????????????????????????????????????? | | | | | | | | | | | | | | | | | | | | | | | | | | | | | | | | | | | | | | | | | +----------------------------------------------------+ Best States ------------- Heat Dissipation 25 Energy Generation 10 Energy Capacity 250 Matter Stores 236 Matter Capacity 300 Sight Range 16 Terrain Scan Range 16 Terrain Scan Density 10 Evasion (%) 62 Item Schematics ----------------- None Robot Schematics ------------------ None Fabricated ------------ Nothing Alien Tech Used ----------------- None Achievements -------------- None Challenges ------------ None Game ------ Seed HeartTransmissionGenerator Manual? 0 Play Time 00:12:16 Cumulative 67.7 hours Start 2024.01.14 @ 23:48:08 End 2024.01.15 @ 00:00:32 Sessions 1 Manual Loads 0 Difficulty Rogue Special Mode None Game No. 41 Rogue 41 Adventurer 0 Explorer 0 Win Type - Total 0 Types 0/0/0/0/0/0/0/0/0 Lore% 54 Gallery% 51 Achievement% 43 Wizard Run 0 Options --------- ASCII 0 Keyboard 1 Movement Arrows Keybinds 0 Fullscreen 1 Font 12/Proggy Map View 83x54 Tactical HUD 1 Map Filters NONE Filters NONE Steam 0 RUN: c67a9791-a0f2-4ec8-8c9a-2e5e75a65bcb